Cogmind - Beta 17 @@@ ROGUE MODE // 2026.06.27 @ 16:26:03 Player: 3.14 Result: Destroyed by G-47 Trooper with Shock Rifle Performance ------------- Evolutions (2) 1000 Regions Visited (3) 600 Robots Destroyed (10) 50 Value Destroyed (441) 441 Prototype IDs (2) 40 Alien Tech Used (0) 0 Bonus (6931) 6931 TOTAL SCORE: 9062 Bonus ------- High Alert Combat Kills 81 Prayed to X0-1V1 5000 Major X0-1V1 Interference 1850 Cogmind --------- Core Integrity 0/700 Matter 118/150 Energy 75/100 System Corruption 11% Temperature Cool (0) Movement Core (150) Ox2 Location -8/Materials Parts ------- > --- POWER (2) -------- (None) > --- PROPULSION (4) --- (None) > --- UTILITY (3) ------ (None) > --- WEAPON (4) ------- Power Sword Scimitar of Distortion > --- INVENTORY (5) ---- High-capacity Storage Unit Autogun Autogun Multitool Peak State ------------ > --- POWER ------------ (None) > --- PROPULSION ------- Aluminum Leg Carbon-fiber Leg Carbon-fiber Leg > --- UTILITY ---------- Improved Melee Analysis Suite Heavy Armor Plating > --- WEAPON ----------- Power Sword Heavy Pick > --- INVENTORY -------- High-capacity Storage Unit Autogun Autogun Multitool Scimitar of Distortion [Rating: 28] Favorites ----------- Power Light Ion Engine Engine Light Ion Engine Propulsion Light Treads Treads Light Treads Leg Carbon-fiber Leg Utility Small Storage Unit Device X0-1V1's Piety Tracker Storage Small Storage Unit Processor Targeting Computer Protection Heavy Armor Plating Weapon Assault Rifle Ballistic Gun Assault Rifle Ballistic Cannon Battle Cannon Special Weapon Multitool Slashing Weapon Power Sword Piercing Weapon Makeshift Spear Build | -11 -10 -10 -8 ------- Run | Yrd Mat Sub Mat Slots Evolved 4 | . . . 4 Power . | . . . . Propulsion 3 | . . . 3 Utility 1 | . . . 1 Weapon . | . . . . Parts Attached 22 | 6 1 1 14 Power 1 | 1 . . . Engine 1 | 1 . . . Core . | . . . . Reactor . | . . . . Propulsion 5 | 2 . . 3 Treads 2 | 2 . . . Leg 3 | . . . 3 Wheel . | . . . . Hover . | . . . . Flight . | . . . . Utility 8 | 1 1 . 6 Device 3 | . 1 . 2 Storage 2 | 1 . . 1 Processor 2 | . . . 2 Hackware . | . . . . Protection 1 | . . . 1 Artifact . | . . . . Weapon 8 | 2 . 1 5 Energy Gun . | . . . . Energy Cannon . | . . . . Ballistic Gun 2 | 2 . . . Ballistic Cannon 1 | . . 1 . Launcher . | . . . . Special Weapon 1 | . . . 1 Impact Weapon . | . . . . Slashing Weapon 2 | . . . 2 Piercing Weapon 2 | . . . 2 Special Melee Weapon . | . . . . Unidentified Prototypes 2 | . 1 . 1 Parts Lost 9 | . . 1 8 Power 1 | . . 1 . Propulsion 3 | . . . 3 Utility 3 | . . . 3 Weapon 2 | . . . 2 Highest Loss Streak 6 | . . 1 6 To Critical Strikes . | . . . . Average Backups 3 | 2 3 5 3 Power . | . 1 . . Propulsion 1 | 1 2 2 . Utility . | . . . . Weapon . | . . 1 1 Tool/Special . | . . . . Unused Backups 5 | . . 3 2 Power 1 | . . 1 . Propulsion 2 | . . 2 . Utility . | . . . . Weapon 2 | . . . 2 Tool/Special . | . . . . Average Slot Usage (%) 61 | . 86 86 20 Engine 8 | . 14 12 . Treads 16 | . 28 22 2 Leg 1 | . . . 4 Device 3 | . . 12 . Storage 8 | . 14 12 . Ballistic Gun 14 | . 28 15 1 Ballistic Cannon 2 | . . 10 . Piercing Weapon 2 | . . . 5 Peak Build Rating 28 | 6 19 21 28 Average Rating 10 | 5 6 18 9 On Entrance 6 | . 6 19 . Avg Prop Armor Cover (%) 29 | . . . 29 Naked Turns 47 | . . 19 28 Heaviest Build 42 | 11 12 14 42 Greatest Support 40 | 40 40 40 40 Greatest Overweight (x) 2 | . . . 2 Average Overweight (x) . | . . . . Largest Inventory Capacity 20 | 8 8 8 20 Average Capacity 7 | 7 8 7 6 Most Carried 7 | 3 3 7 5 Average Carried 3 | 2 3 5 3 Final Capacity 8 | 8 8 5 5 Final Carried 5 | 3 3 5 4 Class Distribution -------------------- 100% | Mutant Dominant Class ---------------- Mutant | -10/Materials Mutant | -10/Subcaves Mutant | -8/Materials Resources | -11 -10 -10 -8 ----------- Run | Yrd Mat Sub Mat Matter Collected 440 | 263 . 36 141 Remotely . | . . . . Salvage Created 531 | 89 . 31 411 Parts 19 | 1 . 1 17 Haulers Intercepted . | . . . . Recyclers Shooed . | . . . . Parts Field Recycled . | . . . . Retrieved Matter . | . . . . Parts Self-Destructed 10 | . . 10 . Prevented . | . . . . Parts Restored . | . . . . Kills | -11 -10 -10 -8 ------- Run | Yrd Mat Sub Mat Combat Hostiles Destroyed 9 | . . 1 8 Melee 8 | . . . 8 Cannons 1 | . . 1 . Classes Destroyed 5 | 1 . 1 3 Recycler 1 | 1 . . . Grunt 5 | . . . 5 Brawler 1 | . . . 1 Hunter 2 | . . . 2 Subdweller 1 | . . 1 . Best Kill Streak 5 | 1 . 1 5 Combat Bots Only 5 | . . 1 5 Max Kills in Single Turn 1 | 1 . 1 1 Gunslinging . | . . . . Exploded . | . . . . Melee 1 | . . . 1 Uniques/NPCs Destroyed . | . . . . Combat | -11 -10 -10 -8 -------- Run | Yrd Mat Sub Mat Hostile Shots Fired 162 | . . 13 149 Missed 36 | . . 4 32 Hits 126 | . . 9 117 Melee 11 | . . 8 3 Projectile 115 | . . 1 114 Critical Strikes 6 | . . . 6 Damage Taken 1955 | . . 220 1735 Core 993 | . . 134 859 Absorbed by Shields . | . . . . Core Remaining (%) 66 | 100 . 33 . Volleys Fired 6 | 2 . 4 . Largest 2 | 2 . 2 . Hottest 53 | 40 . 53 . Shots Fired 11 | 4 . 7 . Gun 8 | 4 . 4 . Cannon 3 | . . 3 . Launcher . | . . . . Special . | . . . . Kinetic 11 | 4 . 7 . Thermal . | . . . . Explosive . | . . . . Electromagnetic . | . . . . Robot Hit Streak 5 | 2 . 5 . Robot Miss Streak 1 | 1 . 1 . Penetration Max . | . . . . Secondary Targets . | . . . . Shots Hit Robots 35 | 2 . 5 28 Core Hits 13 | 2 . 2 9 Critical Kills . | . . . . Critical Parts Destroyed . | . . . . Critical Strikes 6 | . . . 6 Sever 4 | . . . 4 Impale 2 | . . . 2 Melee Attacks 49 | . . . 49 Impact . | . . . . Slashing 23 | . . . 23 Piercing 26 | . . . 26 Sneak Attacks 1 | . . . 1 Combat Hostiles . | . . . . Follow-up Attacks 6 | . . . 6 Damage Inflicted 1113 | 22 . 104 987 Guns 50 | 21 . 29 . Cannons 75 | . . 75 . Explosions . | . . . . Melee 987 | . . . 987 Ramming 1 | 1 . . . Kinetic 125 | 21 . 104 . Thermal . | . . . . Explosive . | . . . . Electromagnetic . | . . . . Impact . | . . . . Slashing 632 | . . . 632 Piercing 355 | . . . 355 Highest Corruption 24 | . . 24 11 Average Corruption 14 | . . 21 7 Corruption Purged . | . . . . Corruption Blocked . | . . . . Effects 7 | . . 5 2 Energy Discharges 2 | . . . 2 Data Loss (major) 1 | . . 1 . Misdirections 2 | . . 2 . Weapon Failures 2 | . . 2 . Overload Shots . | . . . . Overflow Damage 19 | . . . 19 Projectiles . | . . . . Explosions . | . . . . Melee 19 | . . . 19 Knockbacks . | . . . . Impact . | . . . . Kinetic . | . . . . Secondary . | . . . . Self-Inflicted Damage . | . . . . Shots . | . . . . Rammed 1 | 1 . . . Targets Rammed 1 | 1 . . . Kicked . | . . . . Crushed . | . . . . Highest Temperature 230 | . . 230 . Average Temperature 117 | . . 117 . Received Heat Transfer 411 | . . 6 405 Siege Activations . | . . . . Martial Activations . | . . . . Shielding Activations . | . . . . Robots Disrupted . | . . . . Combat Hostiles . | . . . . Robots Corrupted . | . . . . Combat Hostiles . | . . . . Parts Fried . | . . . . Impact Corruptions . | . . . . Robots Melted . | . . . . Combat Hostiles . | . . . . Parts Melted 1 | . . 1 . Heat Transferred . | . . . . Parts Sabotaged . | . . . . Parts Stolen . | . . . . Parts Stripped . | . . . . Power Chain Reactions . | . . . . Alert | -11 -10 -10 -8 ------- Run | Yrd Mat Sub Mat Maximum Alert Level 2 | . . . 2 Low Security (%) 58 | 100 100 . 9 Level 1 21 | . . . 46 Level 2 20 | . . . 43 Level 3 . | . . . . Level 4 . | . . . . Level 5 . | . . . . High Security . | . . . . Max Security . | . . . . Peak Influence 497 | 5 28 . 497 Initial . | . . . . Average 151 | . 3 . 326 Influence Increases 760 | 5 28 . 727 Destroy 0b10 Robot/C 160 | . . . 160 Destroy 0b10 Robot/NC 5 | 5 . . . Destroy Leader 40 | . . . 40 Successful Hack 32 | . 28 . 4 Destroy Structure 6 | . . . 6 Lose Combat Pursuer 285 | . . . 285 Miscellaneous 232 | . . . 232 Influence Decreases 263 | 5 28 . 230 Time Decay 183 | 5 28 . 150 Lost Part 80 | . . . 80 Squads Dispatched 5 | . . . 5 Investigation 2 | . . . 2 Extermination . | . . . . Reinforcement 3 | . . . 3 Assault . | . . . . Garrison . | . . . . Intercept . | . . . . Searches Triggered . | . . . . Construction Impeded 1 | . . . 1 Haulers Reinforced . | . . . . Active Scanning Responses . | . . . . Cargo Convoy Interrupts . | . . . . Stealth | -11 -10 -10 -8 --------- Run | Yrd Mat Sub Mat Distress Signals 3 | . 1 . 2 Communications Jammed . | . . . . Distress Signals . | . . . . Times Spotted 44 | . 1 5 38 Peak Tracking Total 16 | . 1 4 16 Tactical Retreats 4 | . . . 4 Traps | -11 -10 -10 -8 ------- Run | Yrd Mat Sub Mat Traps Triggered 1 | . . . 1 Indirectly . | . . . . Trap Hack Attempts . | . . . . Triggered . | . . . . Disarmed . | . . . . Reprogrammed . | . . . . Reused . | . . . . Traps Extracted . | . . . . Installed . | . . . . Triggered . | . . . . Machines | -11 -10 -10 -8 ---------- Run | Yrd Mat Sub Mat Machines Disabled . | . . . . Max in Single Turn . | . . . . Machines Repaired . | . . . . Machines Dismantled . | . . . . Machines Sabotaged . | . . . . Overloaded Fab Kills . | . . . . Hacking | -11 -10 -10 -8 --------- Run | Yrd Mat Sub Mat Machines Accessed 3 | . 1 . 2 Terminals 3 | . 1 . 2 Fabricators . | . . . . Repair Stations . | . . . . Recycling Units . | . . . . Scanalyzers . | . . . . Garrison Access . | . . . . Total Hacks 6 | . 3 . 3 Successful 3 | . 2 . 1 Failed 3 | . 1 . 2 Catastrophic . | . . . . Database Lockouts . | . . . . Manual 7 | . 4 . 3 Terminals 6 | . 3 . 3 Fabricators . | . . . . Repair Stations . | . . . . Recycling Units . | . . . . Scanalyzers . | . . . . Garrison Access . | . . . . Terminal Hacks 1 | . . . 1 Branch Access Points 1 | . . . 1 Fabricator Hacks . | . . . . Repair Station Hacks . | . . . . Recycling Unit Hacks . | . . . . Scanalyzer . | . . . . Garrison Access Hacks . | . . . . Unauthorized Hacks 2 | . 2 . . Terminals 2 | . 2 . . Assimilate 1 | . 1 . . Skim 1 | . 1 . . Fabricators . | . . . . Repair Stations . | . . . . Recycling Units . | . . . . Scanalyzers . | . . . . Garrison Access . | . . . . Data Cores Recovered . | . . . . Used . | . . . . Hacking Detections 2 | . 1 . 1 Full Trace Events 1 | . . . 1 Feedback Events . | . . . . Feedback Blocked . | . . . . Robot Schematics Acquired . | . . . . Robots Built . | . . . . Authchips . | . . . . Time . | . . . . Total Robot Build Rating . | . . . . Part Schematics Acquired . | . . . . Parts Built . | . . . . Authchips . | . . . . Time . | . . . . Total Part Build Rating . | . . . . Part Studies Acquired . | . . . . Parts Repaired . | . . . . Time . | . . . . Parts Recycled . | . . . . Recycled Matter . | . . . . Retrieved Matter . | . . . . Retrieved Components . | . . . . Parts Scanalyzed . | . . . . Part Schematics Acquired . | . . . . Parts Damaged . | . . . . Bothacking | -11 -10 -10 -8 ------------ Run | Yrd Mat Sub Mat Used RIF Installer . | . . . . Robots Hacked . | . . . . Non-combat . | . . . . Combat . | . . . . Robot Hacks Applied . | . . . . Relay Couplers Released . | . . . . Fabnet Peak Effective % . | . . . . Robots Rewired . | . . . . Allies Hacked . | . . . . Hacks Repelled . | . . . . Allies | -11 -10 -10 -8 -------- Run | Yrd Mat Sub Mat Total Allies 5 | . 1 4 . Largest Group 4 | . 1 4 . Highest-Rated Group 32 | . 10 32 . Highest-Rated Ally 10 | . 10 8 . Total Orders . | . . . . Ally Attacks 10 | . . 10 . Total Damage 90 | . . 90 . Kills . | . . . . Allies Corrupted 1 | . . 1 . Allies Melted . | . . . . X0-1V1 Amusement Gains 23 | . 4 . 19 Good Acts 13 | . . 2 11 Bad Acts 18 | . . 14 4 Intel | -11 -10 -10 -8 ------- Run | Yrd Mat Sub Mat Active Infowar (turns) . | . . . . Robot Analysis Total . | . . . . Derelict Logs Recovered . | . . . . Drone Launches . | . . . . Drone Recoveries . | . . . . Exploration | -11 -10 -10 -8 ------------- Run | Yrd Mat Sub Mat Turns Passed 885 | 87 283 199 316 Spaces Moved 491 | 46 53 125 267 Core 269 | 5 . 26 238 Treads 211 | 41 53 99 18 Legs 11 | . . . 11 Wheels . | . . . . Hover . | . . . . Flight . | . . . . Fastest Speed 50 | 50 160 50 50 Average Speed 101 | 148 160 137 64 Slowest Speed 240 | 160 160 160 240 Overloaded Moves . | . . . . Propulsion Burnouts . | . . . . Robots Hopped . | . . . . Potential Cave-ins . | . . . . Cave-ins Triggered 1 | . . . 1 Exploration Rate (%) 15 | 4 13 7 36 Regions Visited 3 Branch Regions 1 Pre-discovered Areas . | . . . . Known Exits Taken . | . . . . Unknown Exits Taken 3 | 1 1 1 . Scrap Searched 3 | . . 3 . Spaces Dug 7 | . . . 7 Terrain Destroyed 7 | . . . 7 Melee 7 | . . . 7 Projectile . | . . . . AOE . | . . . . Terrain Rammed . | . . . . Walls Destroyed . | . . . . Machines Disabled . | . . . . Actions | -11 -10 -10 -8 --------- Run | Yrd Mat Sub Mat Total 787 | 58 251 143 335 Wait 203 | 1 198 4 . Move 488 | 45 52 124 267 Hop . | . . . . Pick Up 12 | 3 . 6 3 Fast Attach 20 | 6 1 1 12 Attach 7 | . . 1 6 Detach 2 | . . . 2 Swap 1 | . . 1 . Drop 2 | . . 1 1 Fire 6 | 2 . 4 . Melee 43 | . . . 43 Ram 1 | . . 1 . Kick . | . . . . Crush 1 | 1 . . . Escape Stasis . | . . . . Rewire . | . . . . Trap . | . . . . Miscellaneous 1 | . . . 1 Route ------- -11/Scrapyard -10/Materials -10/Subcaves -8/Materials (discovered 2 exits: [*Fac] / *Sto) History --------- Turn | Location | Event 25 | -11/Scrapyard | Discovered new exit (range 15) 88 | -11/Scrapyard | Entered Materials 177 | -10/Materials | Discovered new exit (range 7) 317 | -10/Materials | Build established: Mutant 346 | -10/Materials | Prayed at D.C.S.S. Altar Unit 371 | -10/Materials | Entered Subcaves 384 | -10/Subcaves | Discovered new exit (range 8) 408 | -10/Subcaves | Disturbed a concealed Subdweller 478 | -10/Subcaves | Melee accuracy permanently improved by X0-1V1 (+5%; -50 max core) 508 | -10/Subcaves | X0-1V1 mutated your Propulsion slot to Power slot 522 | -10/Subcaves | System corruption reached 10% 533 | -10/Subcaves | X0-1V1 sent hostile B-36 Bruiser (x4) 550 | -10/Subcaves | Released all parts (6) 557 | -10/Subcaves | Core integrity fell below 50% 561 | -10/Subcaves | X0-1V1 sent allied G-34 Mercenary (x4) 570 | -10/Subcaves | X0-1V1 rewrote G-34 Mercenary IFF filter 570 | -10/Subcaves | Entered Materials 570 | -8/Materials | Evolved 4 slots: Propulsion x3, Utility x1 571 | -8/Materials | X0-1V1 added 0b10 threat records associated with you (major) 577 | -8/Materials | X0-1V1 released a cloud of subatomizers 580 | -8/Materials | Energy generation permanently improved by X0-1V1 (+15; -150 max core) 581 | -8/Materials | Core integrity permanently improved by X0-1V1 (+350) 604 | -8/Materials | X0-1V1 sent you to a vault 609 | -8/Materials | X0-1V1 sent you into danger 614 | -8/Materials | Released all parts (4) 623 | -8/Materials | Discovered new exit (range 10) 624 | -8/Materials | X0-1V1 upgraded hostiles (x1) 641 | -8/Materials | Identified exit to Storage 699 | -8/Materials | Weapon slot count temporarily expanded by X0-1V1 (+2) 735 | -8/Materials | Crushed by falling debris 735 | -8/Materials | Core integrity fell below 50% 744 | -8/Materials | Discovered new exit (range 17) 747 | -8/Materials | Core integrity restored by X0-1V1 (+147) 756 | -8/Materials | Found Prototype Slashing Weapon 756 | -8/Materials | Identified Scimitar of Distortion 875 | -8/Materials | Core integrity fell below 20% 877 | -8/Materials | System corruption reached 10% 886 | -8/Materials | Destroyed by G-47 Trooper with Shock Rifle Last Messages --------------- 00863_ Penetrated by Slug. 00863_ H-66 Slayer Phase Shifter severed. 00866_ K-01 Serf collects debris. 00866_ Carbon-fiber Leg destroyed. 00866_ Penetrated by Slug. 00868_ Hvy. Pick follow-up attack on H-66 Slayer. 00868_ H-66 Slayer suffers critical hit (Impale). 00868_ H-66 Slayer destroyed. 00869_ K-01 Serf collects debris. 00872_ K-01 Serf destroyed. 00872_ Hvy. Pick destroyed. 00872_ Aluminum Leg destroyed. G-47 Trooper form resolidifies at new position. Form resolidifies at new position. G-47 Trooper form resolidifies at new position. 00881_ G-47 Trooper destroyed. 00883_ Power Sword follow-up attack on G-47 Trooper. 00883_ G-47 Trooper destroyed. 00886_ System corrupted: Energy discharge (-25). 00886_ X0-1V1 laughs nastily! Map ----- +----------------------------------------------------+ | | | | | | | | | | | | | | | | | | | | | | | | | | | | | | | | | | | | | | | | | ????????????????????###########??????????????????? | | ????????????????????# !] [ #??????????????????? | | ????????????????????#&/!g!% ] #??????????????????? | | ????????????????????#[ !/=[![ #??????????????????? | | ????????????????????# /!%!!*! #??????????????????? | | ????????#################@######################## | | ???????# [%*[[ ! | | ???????# < %[![! | | ???????# *[!o | | ????????###+#############+######################## | | ??????????????????????# % #???????????????????? | | ??????????????????????# #???????????????????? | | ??????????????????????# ! [ #???????????????????? | | ??????????????????????# [ [ #???????????????????? | | ??????????????????????# [[[ #???????????????????? | | ??????????????????????#] #???????????????????? | | ??????????????????????### ####???????????????????? | | ???????????????????????# ######??????????????????? | | ???????????????????????# #??????????????????? | | ???##??###?????????????# """ #??????????????????? | | ???# ### ##????????????# """ #??????????????????? | | ????# #????????????# """ #??????????????????? | | ##### #######??????# #######??????????### | | ## # #??????# # #??????????# | | "" ## # ##########+#### ############ | | "" ## + T ! > +" | | "" ## # ##### #### #### #### ### ###%" | | "" # #???# #??# #??# #??# #?# #?#"" | | "" ######+#######???# #??#/#??## ##??# #?# #?# | | #????# #########?# #?? ???# #???#+#?# #?# | +----------------------------------------------------+ Best States ------------- Heat Dissipation 31 Energy Generation 20 Energy Capacity 125 Matter Stores 300 Matter Capacity 300 Sight Range 18 Terrain Scan Density 10 Armor Coverage 600 Evasion (%) 50 Targeting Accuracy 5 Melee Accuracy 6 Recoil Reduction 2 Item Schematics ----------------- None Robot Schematics ------------------ None Fabricated ------------ Nothing Repaired ---------- Nothing Studied --------- None Alien Tech Used ----------------- None Achievements -------------- None Challenges ------------ None Game ------ Seed EnergyChargeMinigun Manual? 0 Play Time 00:12:32 Cumulative 953.3 hours Start 2026.06.27 @ 16:17:12 End 2026.06.27 @ 16:26:03 Sessions 1 Manual Loads 0 Difficulty Rogue Special Mode None Game No. 1635 Rogue 1635 Adventurer 0 Explorer 0 Win Type - Total 93 Types 55/1/16/15/4/0/0/1/0/1 Lore% 92 Gallery% 79 Achievement% 65 Wizard Run 0 Options --------- Layout 0 ASCII 1 Keyboard 0 Movement Numpad Keybinds 1 Fullscreen 2 Font 18/SmallcapsGlow Map View 76x50 Zoom Use 0% Tactical HUD 1 Map Filters NONE Filters NONE Steam 1 RUN: 58bdc047-5b79-488e-97a0-271b2d5a9264